fUSD/lending_fUSD_20240814
["ID","MTS","AMOUNT","RATE_DAILY","PERIOD"]
[334853667,1723609848369,-1597.53,0.0001452,2]
[334853668,1723609848378,-500.0,0.0001452,2]
[334853669,1723609848388,-500.0,0.0001452,2]
[334853670,1723609848398,-500.0,0.0001452,2]
[334853671,1723609848408,-1514.3,0.0001452,2]
[334853672,1723609848418,-500.0,0.0001452,2]
[334853673,1723609848428,-500.0,0.0001452,2]
[334853674,1723609848437,-500.0,0.0001452,2]
[334853675,1723609848447,-1130.83,0.0001452,2]
[334853676,1723609848456,-500.0,0.0001452,2]
[334853677,1723609848465,-631.74130621,0.0001452,2]
[334853678,1723609848475,-500.0,0.0001452,2]
[334853679,1723609848484,-500.0,0.0001452,2]
[334853680,1723609848494,-500.0,0.0001452,2]
[334853681,1723609848503,-500.0,0.0001452,2]
[334853682,1723609848513,-500.0,0.0001452,2]
[334853683,1723609848522,-500.0,0.0001452,2]
[334853684,1723609848532,-500.0,0.0001452,2]
[334853685,1723609848541,-512.96,0.0001452,2]
[334853686,1723609848550,-500.0,0.0001452,2]
[334853687,1723609848560,-500.0,0.0001452,2]
[334853688,1723609848570,-500.0,0.0001452,2]
[334853689,1723609848579,-500.0,0.0001452,2]
[334853690,1723609848589,-500.0,0.0001452,2]
[334853691,1723609848598,-500.0,0.0001452,2]
[334853692,1723609848608,-825.54,0.0001452,2]
[334853693,1723609848618,-500.0,0.0001452,2]
[334853694,1723609848628,-500.0,0.0001452,2]
[334853695,1723609848638,-500.0,0.0001452,2]
[334853696,1723609848648,-688.2,0.0001452,2]
[334853697,1723609848658,-500.0,0.0001452,2]
[334853698,1723609848668,-500.0,0.0001452,2]
[334853699,1723609848678,-508.74,0.0001452,2]
[334853700,1723609848687,-966.26,0.0001452,2]
[334853701,1723609848697,-500.0,0.0001452,2]
[334853702,1723609848707,-500.0,0.0001452,2]
[334853703,1723609848716,-882.14,0.0001452,2]
[334853704,1723609848726,-500.0,0.0001452,2]
[334853705,1723609848735,-500.0,0.0001452,2]
[334853706,1723609848745,-500.0,0.0001452,2]
[334853707,1723609848755,-500.0,0.0001452,2]
[334853708,1723609848769,-500.0,0.0001452,2]
[334853709,1723609848779,-500.0,0.0001452,2]
[334853710,1723609848789,-500.0,0.0001452,2]
[334853711,1723609848800,-521.92,0.0001452,2]
[334853712,1723609848809,-500.0,0.0001452,2]
[334853713,1723609848819,-500.0,0.0001452,2]
[334853714,1723609848828,-703.01,0.0001452,2]
[334853715,1723609848838,-320.65479608,0.0001452,2]
[334853716,1723609848848,-500.0,0.0001452,2]
[334853717,1723609848858,-1055.94,0.0001452,2]
[334853718,1723609848868,-500.0,0.0001452,2]
[334853719,1723609848878,-500.0,0.0001452,2]
[334853720,1723609848891,-342.46915884,0.0001452,2]
[334853721,1723609848902,-606.13818572,0.0001452,2]
[334853722,1723609848912,-500.0,0.0001452,2]
[334853723,1723609848921,-500.0,0.0001452,2]
[334853724,1723609848931,-409.67312152,0.0001452,2]
[334853725,1723609848940,-646.22,0.0001452,2]
[334853726,1723609848950,-500.0,0.0001452,2]
[334853727,1723609848959,-2252.71,0.0001452,2]
[334853728,1723609848968,-500.0,0.0001452,2]
[334853729,1723609848978,-880.31,0.0001452,2]
[334853730,1723609848988,-500.0,0.0001452,2]
[334853731,1723609848999,-1294.46,0.0001452,2]
[334853732,1723609849009,-500.0,0.0001452,2]
[334853733,1723609849019,-500.0,0.0001452,2]
[334853734,1723609849029,-951.77,0.0001452,2]
[334853735,1723609849039,-500.0,0.0001452,2]
[334853736,1723609849048,-500.0,0.0001452,2]
[334853737,1723609849058,-501.2,0.0001452,2]
[334853738,1723609849070,-2007.46,0.0001452,2]
[334853739,1723609849080,-1637.64,0.0001452,2]
[334853740,1723609849089,-500.0,0.0001452,2]
[334853741,1723609849098,-500.0,0.0001452,2]
[334853742,1723609849107,-500.0,0.0001452,2]
[334853743,1723609849116,-500.0,0.0001452,2]
[334853744,1723609849125,-500.0,0.0001452,2]
[334853745,1723609849135,-532.67,0.0001452,2]
[334853746,1723609849144,-500.0,0.0001452,2]
[334853747,1723609849154,-500.0,0.0001452,2]
[334853748,1723609849163,-500.0,0.0001452,2]
[334853749,1723609849172,-1243.67,0.0001452,2]
[334853750,1723609849182,-1029.48,0.0001452,2]
[334853751,1723609849191,-500.0,0.0001452,2]
[334853752,1723609849201,-500.0,0.0001452,2]
[334853753,1723609849210,-838.15,0.0001452,2]
[334853754,1723609849219,-632.46,0.0001452,2]
[334853755,1723609849229,-562.14,0.0001452,2]
[334853756,1723609849239,-735.43,0.0001452,2]
[334853757,1723609849248,-500.0,0.0001452,2]
[334853758,1723609849258,-924.42,0.0001452,2]
[334853759,1723609849268,-500.0,0.0001452,2]
[334853760,1723609849278,-679.38,0.0001452,2]
[334853761,1723609849287,-398.89507293,0.0001452,2]
[334853762,1723609849297,-2016.25,0.0001452,2]
[334853763,1723609849307,-500.0,0.0001452,2]
[334853764,1723609849316,-996.84,0.0001452,2]
[334853765,1723609849326,-500.0,0.0001452,2]
[334853766,1723609849336,-2074.06,0.0001452,2]
[334853767,1723609849345,-500.0,0.0001452,2]
[334853768,1723609849355,-500.0,0.0001452,2]
[334853769,1723609849364,-500.0,0.0001452,2]
[334853770,1723609849374,-1744.71,0.0001452,2]
[334853771,1723609849384,-441.99542145,0.0001452,2]
[334853772,1723609849393,-500.0,0.0001452,2]
[334853773,1723609849403,-993.13,0.0001452,2]
[334853774,1723609849412,-1346.19,0.0001452,2]
[334853775,1723609849422,-571.62,0.0001452,2]
[334853776,1723609849432,-1990.94,0.0001452,2]
[334853777,1723609849442,-1138.63,0.0001452,2]
[334853778,1723609849451,-500.0,0.0001452,2]
[334853779,1723609849461,-500.0,0.0001452,2]
[334853780,1723609849470,-500.0,0.0001452,2]
[334853781,1723609849480,-500.0,0.0001452,2]
[334853782,1723609849489,-1184.63,0.0001452,2]
[334853783,1723609849499,-570.91,0.0001452,2]
[334853784,1723609849508,-989.17,0.0001452,2]
[334853785,1723609849518,-2160.46,0.0001452,2]
[334853786,1723609849527,-500.0,0.0001452,2]
[334853787,1723609849536,-1186.27,0.0001452,2]
[334853788,1723609849545,-500.0,0.0001452,2]
[334853789,1723609849555,-500.0,0.0001452,2]
[334853790,1723609849564,-500.0,0.0001452,2]
[334853791,1723609849574,-1867.57,0.0001452,2]
[334853792,1723609849583,-1273.12,0.0001452,2]
[334853793,1723609849593,-629.81,0.0001452,2]
[334853794,1723609849603,-500.0,0.0001452,2]
[334853795,1723609849613,-787.73,0.0001452,2]
[334853796,1723609849623,-500.0,0.0001452,2]
[334853797,1723609849632,-840.85,0.0001452,2]
[334853798,1723609849641,-500.0,0.0001452,2]
[334853799,1723609849654,-500.0,0.0001452,2]
[334853800,1723609849663,-500.0,0.0001452,2]
[334853801,1723609849673,-816.91,0.0001452,2]
[334853802,1723609849683,-1315.34,0.0001452,2]
[334853803,1723609849692,-500.0,0.0001452,2]
[334853804,1723609849703,-500.0,0.0001452,2]
[334853805,1723609849713,-742.37,0.0001452,2]
[334853806,1723609849723,-2161.83,0.0001452,2]
[334853807,1723609849733,-500.0,0.0001452,2]
[334853808,1723609849742,-500.0,0.0001452,2]
[334853809,1723609849752,-500.0,0.0001452,2]
[334853810,1723609849763,-682.41,0.0001452,2]
[334853811,1723609849773,-1020.28,0.0001452,2]
[334853812,1723609849782,-823.18,0.0001452,2]
[334853813,1723609849792,-697.5,0.0001452,2]
[334853814,1723609849802,-500.0,0.0001452,2]
[334853815,1723609849812,-500.0,0.0001452,2]
[334853816,1723609849822,-500.0,0.0001452,2]
[334853817,1723609849832,-529.04,0.0001452,2]
[334853818,1723609849841,-500.0,0.0001452,2]
[334853819,1723609849851,-1026.61,0.0001452,2]
[334853820,1723609849861,-500.0,0.0001452,2]
[334853821,1723609849871,-1426.92,0.0001452,2]
[334853822,1723609849881,-934.99,0.0001452,2]
[334853823,1723609849891,-500.0,0.0001452,2]
[334853824,1723609849900,-1110.01,0.0001452,2]
[334853825,1723609849910,-500.0,0.0001452,2]
[334853826,1723609849919,-1062.19,0.0001452,2]
[334853827,1723609849929,-1885.75,0.0001452,2]
[334853828,1723609849939,-1081.43,0.0001452,2]
[334853829,1723609849948,-1417.64,0.0001452,2]
[334853830,1723609849957,-500.0,0.0001452,2]
[334853831,1723609849967,-500.0,0.0001452,2]
[334853832,1723609849976,-687.0,0.0001452,2]
[334853833,1723609849986,-500.0,0.0001452,2]
[334853834,1723609850000,-500.0,0.0001452,2]
[334853835,1723609850009,-779.74,0.0001452,2]
[334853836,1723609850018,-681.03,0.0001452,2]
[334853837,1723609850028,-500.0,0.0001452,2]
[334853838,1723609850038,-500.0,0.0001452,2]
[334853839,1723609850048,-533.04,0.0001452,2]
[334853840,1723609850057,-500.0,0.0001452,2]
[334853841,1723609850068,-648.57,0.0001452,2]
[334853842,1723609850076,-500.0,0.0001452,2]
[334853843,1723609850086,-859.4,0.0001452,2]
[334853844,1723609850095,-500.0,0.0001452,2]
[334853845,1723609850105,-152.46906517,0.0001452,2]
[334853846,1723609850115,-573.93,0.0001452,2]
[334853847,1723609850125,-500.0,0.0001452,2]
[334853848,1723609850134,-575.8,0.0001452,2]
[334853849,1723609850143,-500.0,0.0001452,2]
[334853850,1723609850152,-1073.74,0.0001452,2]
[334853851,1723609850162,-2787.92,0.0001452,2]
[334853852,1723609850171,-784.46,0.0001452,2]
[334853853,1723609850180,-548.88,0.0001452,2]
[334853854,1723609850189,-500.0,0.0001452,2]
[334853855,1723609850198,-813.12,0.0001452,2]
[334853856,1723609850207,-1169.53,0.0001452,2]
[334853857,1723609850216,-500.0,0.0001452,2]
[334853858,1723609850226,-500.0,0.0001452,2]
[334853859,1723609850235,-500.0,0.0001452,2]
[334853860,1723609850244,-550.41,0.0001452,2]
[334853861,1723609850254,-500.0,0.0001452,2]
[334853862,1723609850263,-874.05,0.0001452,2]
[334853863,1723609850273,-662.44,0.0001452,2]
[334853864,1723609850282,-514.89,0.0001452,2]
[334853865,1723609850292,-897.12,0.0001452,2]
[334853866,1723609850302,-500.0,0.0001452,2]
[334853867,1723609850311,-722.1,0.0001452,2]
[334853868,1723609850320,-1677.46,0.0001452,2]
[334853869,1723609850330,-500.0,0.0001452,2]
[334853870,1723609850339,-827.12,0.0001452,2]
[334853871,1723609850349,-1331.11,0.0001452,2]
[334853872,1723609850359,-500.0,0.0001452,2]
[334853873,1723609850369,-500.0,0.0001452,2]
[334853874,1723609850379,-747.02,0.0001452,2]
[334853875,1723609850388,-500.0,0.0001452,2]
[334853876,1723609850397,-500.0,0.0001452,2]
[334853877,1723609850406,-979.9,0.0001452,2]
[334853878,1723609850416,-1337.17,0.0001452,2]
[334853879,1723609850425,-2317.78,0.0001452,2]
[334853880,1723609850435,-1767.63,0.0001452,2]
[334853881,1723609850445,-768.37,0.0001452,2]
[334853882,1723609850455,-500.0,0.0001452,2]
[334853883,1723609850464,-1308.24,0.0001452,2]
[334853884,1723609850474,-665.33,0.0001452,2]
[334853885,1723609850484,-1152.45,0.0001452,2]
[334853886,1723609850493,-500.0,0.0001452,2]
[334853887,1723609850502,-500.0,0.0001452,2]
[334853888,1723609850513,-500.0,0.0001452,2]
[334853889,1723609850523,-500.0,0.0001452,2]
[334853890,1723609850533,-573.78,0.0001452,2]
[334853891,1723609850543,-561.17,0.0001452,2]
[334853892,1723609850552,-543.31,0.0001452,2]
[334853893,1723609850563,-727.32,0.0001452,2]
[334853894,1723609850572,-1911.45,0.0001452,2]
[334853895,1723609850582,-793.97,0.0001452,2]
[334853896,1723609850591,-500.0,0.0001452,2]
[334853897,1723609850601,-500.0,0.0001452,2]
[334853898,1723609850611,-500.0,0.0001452,2]
[334853899,1723609850620,-574.12,0.0001452,2]
[334853900,1723609850630,-500.0,0.0001452,2]
[334853901,1723609850639,-1032.04,0.0001452,2]
[334853902,1723609850649,-831.96,0.0001452,2]
[334853903,1723609850659,-500.0,0.0001452,2]
[334853904,1723609850668,-1203.92,0.0001452,2]
[334853905,1723609850677,-788.71,0.0001452,2]
[334853906,1723609850687,-500.0,0.0001452,2]
[334853907,1723609850697,-1101.68,0.0001452,2]
[334853908,1723609850706,-548.96,0.0001452,2]
[334853909,1723609850716,-500.0,0.0001452,2]
[334853910,1723609850726,-1753.38,0.0001452,2]
[334853911,1723609850735,-1248.17,0.0001452,2]
[334853912,1723609850746,-1358.16,0.0001452,2]
[334853913,1723609850756,-524.48,0.0001452,2]
[334853914,1723609850767,-757.67,0.0001452,2]
[334853915,1723609850777,-500.0,0.0001452,2]
[334853916,1723609850786,-1262.29,0.0001452,2]
[334853917,1723609850796,-500.0,0.0001452,2]
[334853918,1723609850806,-1063.98,0.0001452,2]
[334853919,1723609850815,-1515.14,0.0001452,2]
[334853920,1723609850825,-505.93296402,0.0001452,2]
[334853921,1723609850835,-1432.6,0.0001452,2]
[334853922,1723609850845,-1036.82,0.0001452,2]
[334853923,1723609850855,-515.71,0.0001452,2]
[334853924,1723609850864,-517.32,0.0001452,2]
[334853925,1723609850874,-1528.48,0.0001452,2]
[334853926,1723609850883,-500.0,0.0001452,2]
[334853927,1723609850892,-531.49,0.0001452,2]
[334853928,1723609850902,-633.1,0.0001452,2]
[334853929,1723609850911,-500.0,0.0001452,2]
[334853930,1723609850921,-500.0,0.0001452,2]
[334853931,1723609850931,-949.66,0.0001452,2]
[334853932,1723609850940,-500.0,0.0001452,2]
[334853933,1723609850949,-670.33,0.0001452,2]
[334853934,1723609850959,-500.0,0.0001452,2]
[334853935,1723609850968,-611.16,0.0001452,2]
[334853936,1723609850977,-1056.45,0.0001452,2]
[334853937,1723609850989,-1394.22,0.0001452,2]
[334853938,1723609850999,-500.0,0.0001452,2]
[334853939,1723609851008,-500.0,0.0001452,2]
[334853940,1723609851017,-500.0,0.0001452,2]
[334853941,1723609851027,-500.0,0.0001452,2]
[334853942,1723609851036,-500.0,0.0001452,2]
[334853943,1723609851046,-1262.52,0.0001452,2]
[334853944,1723609851056,-858.99,0.0001452,2]
[334853945,1723609851068,-649.6,0.0001452,2]
[334853946,1723609851079,-862.28,0.0001452,2]
[334853947,1723609851088,-512.90032187,0.0001452,2]
[334853948,1723609851097,-500.0,0.0001452,2]
[334853949,1723609851107,-668.29,0.0001452,2]
[334853950,1723609851116,-500.0,0.0001452,2]
[334853951,1723609851125,-500.0,0.0001452,2]
[334853952,1723609851135,-994.54,0.0001452,2]
[334853953,1723609851143,-500.0,0.0001452,2]
[334853954,1723609851153,-500.0,0.0001452,2]
[334853955,1723609851162,-500.0,0.0001452,2]
[334853956,1723609851172,-500.0,0.0001452,2]
[334853957,1723609851182,-500.0,0.0001452,2]
[334853958,1723609851191,-500.0,0.0001452,2]
[334853959,1723609851200,-594.03,0.0001452,2]
[334853960,1723609851210,-500.0,0.0001452,2]
[334853961,1723609851219,-2129.2,0.0001452,2]
[334853962,1723609851229,-500.0,0.0001452,2]
[334853963,1723609851239,-500.0,0.0001452,2]
[334853964,1723609851249,-914.03,0.0001452,2]
[334853965,1723609851259,-500.0,0.0001452,2]
[334853966,1723609851270,-500.0,0.0001452,2]
[334853967,1723609851280,-500.0,0.0001452,2]
[334853968,1723609851291,-1713.7,0.0001452,2]
[334853969,1723609851301,-1361.46,0.0001452,2]
[334853970,1723609851310,-546.87,0.0001452,2]
[334853971,1723609851320,-1866.29,0.0001452,2]
[334853972,1723609851329,-589.26,0.0001452,2]
[334853973,1723609851338,-613.17,0.0001452,2]
[334853974,1723609851348,-500.0,0.0001452,2]
[334853975,1723609851357,-2021.75,0.0001452,2]
[334853976,1723609851367,-501.29429221,0.0001452,2]
[334853977,1723609851377,-500.0,0.0001452,2]
[334853978,1723609851386,-522.45,0.0001452,2]
[334853979,1723609851396,-1137.56,0.0001452,2]
[334853980,1723609851406,-500.0,0.0001452,2]
[334853981,1723609851415,-500.0,0.0001452,2]
[334853982,1723609851426,-500.0,0.0001452,2]
[334853983,1723609851435,-500.0,0.0001452,2]
[334853984,1723609851447,-500.0,0.0001452,2]
[334853985,1723609851457,-1319.16,0.0001452,2]
[334853986,1723609851467,-1427.54,0.0001452,2]
[334853987,1723609851477,-500.0,0.0001452,2]
[334853988,1723609851487,-500.0,0.0001452,2]
[334853989,1723609851496,-763.0,0.0001452,2]
[334853990,1723609851508,-1228.12,0.0001452,2]
[334853991,1723609851518,-500.0,0.0001452,2]
[334853992,1723609851527,-716.55,0.0001452,2]
[334853993,1723609851538,-500.0,0.0001452,2]
[334853994,1723609851548,-500.0,0.0001452,2]
[334853995,1723609851557,-801.08,0.0001452,2]
[334853996,1723609851567,-952.82,0.0001452,2]
[334853997,1723609851576,-238.52,0.0001452,2]
[334853998,1723609851585,-500.0,0.0001452,2]
[334853999,1723609851595,-500.0,0.0001452,2]
[334854000,1723609851605,-500.0,0.0001452,2]
[334854001,1723609851614,-500.0,0.0001452,2]
[334854002,1723609851624,-567.1,0.0001452,2]
[334854003,1723609851633,-727.51,0.0001452,2]
[334854004,1723609851644,-500.0,0.0001452,2]
[334854005,1723609851655,-500.0,0.0001452,2]
[334854006,1723609851665,-451.73037197,0.0001452,2]
[334854007,1723609851674,-500.0,0.0001452,2]
[334854008,1723609851685,-707.49,0.0001452,2]
[334854009,1723609851694,-930.55,0.0001452,2]
[334854010,1723609851704,-500.0,0.0001452,2]
[334854011,1723609851714,-326.40011864,0.0001452,2]
[334854012,1723609851724,-660.45,0.0001452,2]
[334854013,1723609851733,-500.0,0.0001452,2]
[334854014,1723609851743,-500.0,0.0001452,2]
[334854015,1723609851752,-500.0,0.0001452,2]
[334854016,1723609851762,-1078.02,0.0001452,2]
[334854017,1723609851771,-1088.19,0.0001452,2]
[334854018,1723609851781,-500.0,0.0001452,2]
[334854019,1723609851791,-500.0,0.0001452,2]
[334854020,1723609851801,-500.0,0.0001452,2]
[334854021,1723609851810,-500.0,0.0001452,2]
[334854022,1723609851820,-759.3,0.0001452,2]
[334854023,1723609851830,-1530.37,0.0001452,2]
[334854024,1723609851839,-889.18,0.0001452,2]
[334854025,1723609851849,-934.11,0.0001452,2]
[334854026,1723609851858,-500.0,0.0001452,2]
[334854027,1723609851868,-500.0,0.0001452,2]
[334854028,1723609851877,-1121.46,0.0001452,2]
[334854029,1723609851887,-1039.28,0.0001452,2]
[334854030,1723609851896,-500.0,0.0001452,2]
[334854031,1723609851908,-512.89,0.0001452,2]
[334854032,1723609851917,-500.0,0.0001452,2]
[334854033,1723609851926,-1333.72,0.0001452,2]
[334854034,1723609851936,-500.0,0.0001452,2]
[334854035,1723609851945,-500.0,0.0001452,2]
[334854036,1723609851954,-500.0,0.0001452,2]
[334854037,1723609851963,-1259.4,0.0001452,2]
[334854038,1723609851973,-1236.44,0.0001452,2]
[334854039,1723609851983,-500.0,0.0001452,2]
[334854040,1723609851995,-500.0,0.0001452,2]
[334854041,1723609852005,-586.02,0.0001452,2]
[334854042,1723609852014,-500.0,0.0001452,2]
[334854043,1723609852025,-1094.67,0.0001452,2]
[334854044,1723609852035,-500.0,0.0001452,2]
[334854045,1723609852045,-500.0,0.0001452,2]
[334854046,1723609852054,-572.66,0.0001452,2]
[334854047,1723609852065,-500.0,0.0001452,2]
[334854048,1723609852075,-899.03,0.0001452,2]
[334854049,1723609852199,-664.92,0.0001452,2]
[334854050,1723609852208,-756.4,0.0001452,2]
[334854051,1723609852218,-500.0,0.0001452,2]
[334854052,1723609852227,-500.0,0.0001452,2]
[334854053,1723609852236,-500.0,0.0001452,2]
[334854054,1723609852246,-1704.02,0.0001452,2]
[334854055,1723609852256,-534.59,0.0001452,2]
[334854056,1723609852265,-602.19,0.0001452,2]
[334854057,1723609852275,-585.03,0.0001452,2]
[334854058,1723609852284,-549.62,0.0001452,2]
[334854059,1723609852294,-554.55,0.0001452,2]
[334854060,1723609852304,-500.0,0.0001452,2]
[334854061,1723609852313,-633.91,0.0001452,2]
[334854062,1723609852323,-1088.07,0.0001452,2]
[334854063,1723609852332,-500.0,0.0001452,2]
[334854064,1723609852342,-500.0,0.0001452,2]
[334854065,1723609852351,-1076.76,0.0001452,2]
[334854066,1723609852361,-500.0,0.0001452,2]
[334854067,1723609852371,-642.2,0.0001452,2]
[334854068,1723609852380,-1310.19,0.0001452,2]
[334854069,1723609852390,-7376.68,0.0001452,2]
[334854070,1723609852400,-500.0,0.0001452,2]
[334854071,1723609852409,-600.13,0.0001452,2]
[334854072,1723609852419,-500.0,0.0001452,2]
[334854073,1723609852429,-884.91,0.0001452,2]
[334854074,1723609852439,-2366.93,0.0001452,2]
[334854075,1723609852449,-500.0,0.0001452,2]
[334854076,1723609852458,-500.0,0.0001452,2]
[334854077,1723609852467,-500.0,0.0001452,2]
[334854078,1723609852477,-989.3,0.0001452,2]
[334854079,1723609852486,-500.0,0.0001452,2]
[334854080,1723609852495,-4480.77,0.0001452,2]
[334854081,1723609852505,-978.57,0.0001452,2]
[334854082,1723609852515,-624.47,0.0001452,2]
[334854083,1723609852524,-500.0,0.0001452,2]
[334854084,1723609852534,-588.4,0.0001452,2]
[334854085,1723609852544,-7603.03,0.0001452,2]
[334854086,1723609852553,-870.91,0.0001452,2]
[334854087,1723609852563,-1387.64,0.0001452,2]
[334854088,1723609852572,-933.77,0.0001452,2]
[334854089,1723609852582,-500.0,0.0001452,2]
[334854090,1723609852592,-1213.63,0.0001452,2]
[334854091,1723609852603,-500.0,0.0001452,2]
[334854092,1723609852612,-34383.11,0.0001452,2]
[334854093,1723609852622,-1373.06,0.0001452,2]
[334854094,1723609852632,-500.0,0.0001452,2]
[334854095,1723609852641,-671.92,0.0001452,2]
[334854096,1723609852653,-593.97,0.0001452,2]
[334854097,1723609852663,-500.0,0.0001452,2]
[334854098,1723609852673,-670.51,0.0001452,2]
[334854099,1723609852683,-2281.42,0.0001452,2]
[334854100,1723609852693,-500.0,0.0001452,2]
[334854101,1723609852702,-500.0,0.0001452,2]
[334854102,1723609852712,-500.0,0.0001452,2]
[334854103,1723609852722,-643.43,0.0001452,2]
[334854104,1723609852732,-500.0,0.0001452,2]
[334854105,1723609852742,-1248.5,0.0001452,2]
[334854106,1723609852752,-518.47,0.0001452,2]
[334854107,1723609852762,-500.0,0.0001452,2]
[334854108,1723609852771,-1370.1,0.0001452,2]
[334854109,1723609852780,-1086.21,0.0001452,2]
[334854110,1723609852790,-3534.93,0.0001452,2]
[334854111,1723609852800,-500.0,0.0001452,2]
[334854112,1723609852809,-1952.92,0.0001452,2]
[334854113,1723609852819,-500.0,0.0001452,2]
[334854114,1723609852828,-1576.63,0.0001452,2]
[334854115,1723609852837,-500.0,0.0001452,2]
[334854116,1723609852847,-500.0,0.0001452,2]
[334854117,1723609852857,-910.69,0.0001452,2]
[334854118,1723609852866,-539.62,0.0001452,2]
[334854119,1723609852876,-1851.14,0.0001452,2]
[334854120,1723609852886,-860.94,0.0001452,2]
[334854121,1723609852896,-500.0,0.0001452,2]
[334854122,1723609852905,-500.0,0.0001452,2]
[334854123,1723609852915,-11477.37,0.0001452,2]
[334854124,1723609852924,-500.0,0.0001452,2]
[334854125,1723609852933,-500.0,0.0001452,2]
[334854126,1723609852943,-500.0,0.0001452,2]
[334854127,1723609852953,-500.0,0.0001452,2]
[334854128,1723609852963,-1281.62,0.0001452,2]
[334854129,1723609852973,-506.42,0.0001452,2]
[334854130,1723609852982,-504.15266755,0.0001452,2]
[334854131,1723609852995,-940.92,0.0001452,2]
[334854132,1723609853004,-500.0,0.0001452,2]
[334854133,1723609853013,-1472.9,0.0001452,2]
[334854134,1723609853023,-627.23,0.0001452,2]
[334854135,1723609853033,-500.0,0.0001452,2]
[334854136,1723609853042,-572.1,0.0001452,2]
[334854137,1723609853052,-542.26,0.0001452,2]
[334854138,1723609853062,-3046.11,0.0001452,2]
[334854139,1723609853072,-500.0,0.0001452,2]
[334854140,1723609853082,-500.0,0.0001452,2]
[334854141,1723609853091,-703.44,0.0001452,2]
[334854142,1723609853101,-1526.23,0.0001452,2]
[334854143,1723609853110,-625.03,0.0001452,2]
[334854144,1723609853120,-661.53,0.0001452,2]
[334854145,1723609853129,-1572.44,0.0001452,2]
[334854146,1723609853138,-1259.91,0.0001452,2]
[334854147,1723609853148,-999.55,0.0001452,2]
[334854148,1723609853158,-500.0,0.0001452,2]
[334854149,1723609853167,-809.75,0.0001452,2]
[334854150,1723609853176,-500.0,0.0001452,2]
[334854151,1723609853186,-500.0,0.0001452,2]
[334854152,1723609853195,-2268.61,0.0001452,2]
[334854153,1723609853205,-1125.39,0.0001452,2]
[334854154,1723609853214,-779.17,0.0001452,2]
[334854155,1723609853223,-1486.32,0.0001452,2]
[334854156,1723609853232,-731.78,0.0001452,2]
[334854157,1723609853242,-1470.1,0.0001452,2]
[334854158,1723609853251,-896.11,0.0001452,2]
[334854159,1723609853261,-681.82,0.0001452,2]
[334854160,1723609853270,-1454.11,0.0001452,2]
[334854161,1723609853280,-1104.05,0.0001452,2]
[334854162,1723609853289,-2169.37,0.0001452,2]
[334854163,1723609853298,-500.0,0.0001452,2]
[334854164,1723609853307,-10922.42,0.0001452,2]
[334854165,1723609853317,-500.0,0.0001452,2]
[334854166,1723609853327,-500.0,0.0001452,2]